fUST/lending_fUST_20250926
["ID","MTS","AMOUNT","RATE_DAILY","PERIOD"]
[387818738,1758888653866,-70347.65126994,0.000486,13]
[387818739,1758888653878,-35605.27044367,0.000486,13]
[387818740,1758888653889,-800.3032821,0.000486,13]
[387818741,1758888653900,-893.83661463,0.000486,13]
[387818742,1758888653911,-923.51340604,0.000486,13]
[387818743,1758888653922,-22266.0,0.000486,13]
[387818744,1758888653933,-7557.21917971,0.000486,13]
[387818745,1758888653942,-2000.0,0.000489,120]
[387818746,1758888653951,-1000.0,0.00048999,120]
[387818747,1758888653960,-310.54899583,0.00049,15]
[387818748,1758888653970,-1000.0,0.00049,120]
[387818749,1758888653979,-332.57724546,0.00049,60]
[387818750,1758888653991,-8497.82427888,0.00049,60]
[387818751,1758888654002,-836.53932404,0.00049,60]
[387818752,1758888654011,-1418.10257208,0.00049,2]
[387818753,1758888654023,-81.89742792,0.00049,2]
[387818754,1758888654033,-394.58916604,0.00049,120]
[387818755,1758888654044,-2605.41083396,0.00049,120]
[387818756,1758888654053,-1179.91393798,0.00049,120]
[387818757,1758888654064,-442.31960794,0.00049,120]
[387818758,1758888654075,-5427.1442901,0.00049,120]
[387818759,1758888654084,-452.66,0.000491,120]
[387818760,1758888654093,-10338.72239473,0.000491,120]
[387818761,1758888654102,-151.0,0.000492,22]
[387818762,1758888654111,-151.0,0.000493,26]
[387818763,1758888654120,-797.936103,0.00049315,2]
[387818764,1758888654129,-1179.35525696,0.0004934,2]
[387818765,1758888654139,-150.0,0.00049367,30]
[387818766,1758888654156,-1598.03,0.000494,14]
[387818767,1758888654166,-200.0,0.00049439,60]
[387818768,1758888654175,-168754.75785782,0.0004944,30]
[387818769,1758888654186,-749.12691578,0.0004944,30]
[387818770,1758888654268,-1012.23433984,0.0004944,30]
[387818771,1758888654281,-1419.41564164,0.0004944,30]
[387818772,1758888654292,-36885.08109663,0.0004944,30]
[387818773,1758888654363,-194.98954467,0.00041095,120]
[387818774,1758888654373,-151.0,0.0004844,120]
[387818775,1758888654383,-567943.08702472,0.0004944,30]
[387818776,1758888654395,-209526.20585779,0.0004944,30]
[387818777,1758888654406,-1418.95741309,0.0004944,30]
[387818778,1758888654421,-480.0,0.00038356,30]
[387818779,1758888654431,-593.865681,0.0004944,30]
[387818780,1758888654443,-1439.4,0.0004944,30]
[387818781,1758888654457,-3000.0,0.0004944,30]
[387818782,1758888654468,-383.27,0.0004944,30]
[387818783,1758888654492,-480.0,0.0003863,30]
[387818784,1758888654505,-480.0,0.00038904,30]
[387818785,1758888654515,-480.0,0.00039178,30]
[387818786,1758888654523,-6874.59817169,0.0004944,30]
[387818787,1758888654532,-151.0,0.0004944,120]
[387818788,1758888654541,-151.0,0.0004944,120]
[387818789,1758888654550,-151.0,0.0004944,120]
[387818790,1758888654559,-151.0,0.0004944,120]
[387818791,1758888654568,-151.0,0.0004944,120]
[387818792,1758888654580,-151.0,0.0004944,120]
[387818793,1758888654590,-151.0,0.0004944,120]
[387818794,1758888654599,-296.43308,0.0004944,120]
[387818795,1758888654609,-151.0,0.0004944,120]
[387818796,1758888654619,-151.0,0.0004944,15]
[387818797,1758888654629,-151.0,0.0004944,15]
[387818798,1758888654638,-151.0,0.0004944,120]
[387818799,1758888654649,-154.878965,0.0004944,120]
[387818800,1758888654659,-151.0,0.0004944,120]
[387818801,1758888654669,-151.0,0.0004944,120]
[387818802,1758888654679,-151.0,0.0004944,120]
[387818803,1758888654688,-151.0,0.0004944,120]
[387818804,1758888654699,-151.0,0.0004944,120]
[387818805,1758888654708,-219.974716,0.0004944,120]
[387818806,1758888654718,-219.974716,0.0004944,120]
[387818807,1758888654727,-219.974716,0.0004944,120]
[387818808,1758888654737,-219.974716,0.0004944,120]
[387818809,1758888654746,-151.0,0.0004944,120]
[387818810,1758888654755,-151.0,0.0004944,120]
[387818811,1758888654765,-151.0,0.0004944,120]
[387818812,1758888654775,-151.0,0.0004944,120]
[387818813,1758888654784,-151.0,0.0004944,30]
[387818814,1758888654794,-151.0,0.0004944,30]
[387818815,1758888654803,-151.0,0.0004944,30]
[387818816,1758888654812,-151.0,0.0004944,120]
[387818817,1758888654821,-151.0,0.0004944,120]
[387818818,1758888654831,-151.0,0.0004944,120]
[387818819,1758888654841,-151.0,0.0004944,120]
[387818820,1758888654850,-500.0,0.00049473,10]
[387818821,1758888654859,-1396.56842786,0.00049474,2]
[387818822,1758888654870,-11009.00993701,0.00049474,2]
[387818823,1758888654880,-500.0,0.000495,120]
[387818824,1758888654890,-364.18048296,0.00049741,55]
[387818825,1758888654900,-1000.0,0.00049999,120]
[387818826,1758888654909,-530.36717988,0.0005,10]
[387818827,1758888654919,-199.0,0.0005,7]
[387818828,1758888654929,-220.32789023,0.0005,20]
[387818829,1758888654939,-492.50579481,0.0005,10]
[387818830,1758888654948,-1000.0,0.0005,120]
[387818831,1758888654957,-549.48942577,0.0005,120]
[387818832,1758888654966,-2998.21371428,0.0005,120]
[387818833,1758888654975,-300.0,0.0005,120]
[387818834,1758888654985,-839.25605643,0.0005,120]
[387818835,1758888654994,-500.0,0.0005,120]
[387818836,1758888655003,-1197.74449619,0.0005,120]
[387818837,1758888655013,-365.4811001,0.0005,120]
[387818838,1758888655022,-279.23544216,0.00050169,120]
[387818839,1758888655031,-1929.78102408,0.0005075,2]
[387818840,1758888655040,-500.0,0.00050862,30]
[387818841,1758888655049,-500.0,0.00050862,30]
[387818842,1758888655058,-364.18048296,0.00050889,58]
[387818843,1758888655067,-2000.0,0.000509,120]
[387818844,1758888655076,-4832.3587748,0.0005092,120]
[387818845,1758888655085,-4832.3587748,0.00050941,120]
[387818846,1758888655094,-9091.10464934,0.00050953,120]
[387818847,1758888655103,-4832.3587748,0.00050959,120]
[387818848,1758888655112,-9091.10464934,0.00050974,120]
[387818849,1758888655122,-4832.3587748,0.00050983,120]
[387818850,1758888655131,-9091.10464934,0.00050985,120]
[387818851,1758888655142,-9091.10464934,0.00050989,120]
[387818852,1758888655151,-500.0,0.00051,120]
[387818853,1758888655161,-2032.78,0.00051,90]
[387818854,1758888655170,-1000.0,0.00051,120]
[387818855,1758888655178,-3000.0,0.00051,85]
[387818856,1758888655188,-3000.0,0.0005101,85]
[387818857,1758888655197,-3000.0,0.0005102,85]
[387818858,1758888655206,-1602.75429301,0.0005103,85]
[387818859,1758888655218,-1397.24570699,0.0005103,85]
[387818860,1758888655227,-2005.50255836,0.0005104,85]
[387818861,1758888655239,-901.01638386,0.0005104,85]
[387818863,1758888805367,279.8,0.0003108,120]
[387818910,1758889700370,-274.94734132,0.000199,2]
[387818915,1758889751320,72.6915421,0.000199,2]
[387818928,1758889832217,-336.91451741,0.000199,2]
[387818930,1758889832227,-300.0,0.000199,2]
[387818932,1758889832236,-300.0,0.000199,2]
[387818934,1758889832245,-336.91451713,0.0002114,2]
[387818936,1758889832254,-619.50640528,0.000215,2]
[387818939,1758889832263,-336.91451713,0.00022379,2]
[387818942,1758889832273,-2957.60623303,0.00023,2]
[387818944,1758889832283,-336.91451713,0.00023619,2]
[387818946,1758889832293,-621.8542133,0.00023822,2]
[387818948,1758889832303,-300.0,0.00024499,2]
[387818950,1758889832313,-1200.0,0.00024499,2]
[387818952,1758889832323,-4202.69270471,0.000245,2]
[387818954,1758889832334,-1334.18069814,0.000245,2]
[387818957,1758889832348,-1271.03808827,0.000245,2]
[387818960,1758889832358,-208.96193673,0.00024858,2]
[387818963,1758889832369,-127.9525804,0.00024858,2]
[387818965,1758889832379,-233.71402077,0.00025177,2]
[387818967,1758889832388,-156.06089826,0.00025177,2]
[387818969,1758889832399,-261.09382959,0.00025177,2]
[387818971,1758889832413,-160.0,0.00025178,2]
[387818973,1758889832423,-192.97866005,0.00025196,2]
[387818978,1758889832455,-355.82474605,0.00025196,2]
[387818980,1758889832465,-239.0,0.0002589,18]
[387818982,1758889832474,-546.81999909,0.00025998,2]
[387818984,1758889832484,-7750.13920884,0.00026,30]
[387819034,1758889838041,-300.0,0.000199,2]
[387819035,1758889838050,-160.0,0.00025177,2]
[387819036,1758889838059,-2379.4653295,0.00025575,2]
[387819037,1758889838071,-1011.7194644,0.00025575,2]
[387819038,1758889838100,-8547.880737,0.00025575,2]
[387819039,1758889838110,-500.0,0.00025999,2]
[387819040,1758889838121,-262.71064091,0.00025999,2]
[387819041,1758889838131,-500.0,0.00025999,2]
[387819042,1758889838141,-500.0,0.00025999,2]
[387819043,1758889838150,-500.0,0.00025999,2]
[387819044,1758889838159,-411.13727782,0.00025999,2]
[387819045,1758889838173,-500.0,0.00025999,2]
[387819046,1758889838183,-500.0,0.00025999,2]
[387819047,1758889838193,-500.0,0.00025999,2]
[387819048,1758889838202,-500.0,0.00025999,2]
[387819049,1758889838211,-500.0,0.00025999,2]
[387819050,1758889838221,-212.54792736,0.00025999,2]
[387819051,1758889838230,-500.0,0.00025999,2]
[387819052,1758889838239,-18295.31526916,0.00026,30]
[387819053,1758889838248,-500.0,0.00026,2]
[387819054,1758889838257,-500.0,0.00026,2]
[387819055,1758889838267,-459.86952727,0.00026,2]
[387819056,1758889838276,-515.20291988,0.00026,2]
[387819057,1758889838286,-336.91451713,0.00026098,4]
[387819058,1758889838295,-746.56541706,0.00026299,2]
[387819059,1758889838304,-198.61531887,0.000263,2]
[387819060,1758889838313,-1000.0,0.00026548,2]
[387819061,1758889838322,-1000.0,0.00026548,2]
[387819062,1758889838332,-420.0,0.00026554,2]
[387819063,1758889838341,-160.0,0.00026562,2]
[387819064,1758889838351,-1680.0,0.00026675,2]
[387819065,1758889838361,-1500.0,0.00027096,2]
[387819066,1758889838371,-1500.0,0.00027096,2]
[387819067,1758889838381,-336.91451713,0.00027338,7]
[387819068,1758889838391,-1417.956,0.00027397,30]
[387819069,1758889838400,-7042.24976883,0.000275,2]
[387819070,1758889838410,-2000.0,0.00027644,5]
[387819071,1758889838424,-2000.0,0.00027644,5]
[387819072,1758889838434,-894.06546149,0.00028192,5]
[387819073,1758889838443,-2500.0,0.00028192,5]
[387819074,1758889838453,-336.91451713,0.00028577,10]
[387819075,1758889838463,-1023.00889075,0.0002874,5]
[387819076,1758889838472,-587.0,0.00028782,2]
[387819077,1758889838482,-2033.0,0.00029045,2]
[387819078,1758889838492,-336.91451713,0.00029817,12]
[387819079,1758889838502,-336.91451713,0.00031056,15]
[387819080,1758889838512,-823.0,0.00031196,2]
[387819081,1758889838522,-5000.0,0.00031243,60]
[387819082,1758889838531,-1999.1720777,0.00031243,2]
[387819083,1758889838541,-500.0,0.00031476,2]
[387819084,1758889838551,-546.81999908,0.00031476,2]
[387819085,1758889838561,-230.680818,0.00031494,2]
[387819086,1758889838571,-495.43768839,0.0003175,2]
[387819087,1758889838581,-177.4108125,0.00032,120]
[387819088,1758889838590,-160.0,0.00032,120]
[387819089,1758889838599,-151.85223583,0.00032069,30]
[387819090,1758889838609,-336.91451713,0.00032296,18]
[387819091,1758889838618,-177.4108125,0.000323,120]
[387819092,1758889838627,-181.52,0.000323,32]
[387819093,1758889838637,-160.0,0.000323,2]
[387819094,1758889838647,-177.4108125,0.000326,120]
[387819095,1758889838657,-260.0,0.00032848,2]
[387819096,1758889838676,-685.286303,0.00032877,2]
[387819097,1758889838687,-168.0,0.00032942,2]
[387819098,1758889838698,-5000.0,0.00033243,4]
[387819099,1758889838708,-360.0,0.00033396,2]
[387819100,1758889838718,-336.91451713,0.00033536,20]
[387819101,1758889838728,-168.0,0.00033593,2]
[387819102,1758889838738,-460.0,0.00033944,2]
[387819103,1758889838747,-168.0,0.00034071,2]
[387819104,1758889838757,-168.0,0.00034388,2]
[387819105,1758889838767,-560.0,0.00034492,2]
[387819106,1758889838777,-336.91451713,0.00034775,23]
[387819107,1758889838787,-157.26189252,0.00035,120]
[387819108,1758889838797,-256.39886063,0.00035,120]
[387819109,1758889838807,-480.0,0.0003504,2]
[387819110,1758889838817,-3629.78030656,0.000355,20]
[387819111,1758889838827,-244.72668916,0.00036,30]
[387819112,1758889838836,-336.91451713,0.00036015,26]
[387819113,1758889838845,-168.0,0.00036054,2]
[387819114,1758889838854,-546.81999908,0.00036954,2]
[387819115,1758889838864,-336.91451713,0.00037254,28]
[387819116,1758889838874,-2983.27540659,0.00037649,2]
[387819117,1758889838885,-1000.0,0.00038082,120]
[387819118,1758889838895,-1000.0,0.00038082,120]
[387819119,1758889838904,-880.0,0.00038082,120]
[387819120,1758889838920,-191.94,0.00038346,3]
[387819121,1758889838930,-575.84,0.00038346,3]
[387819122,1758889838940,-500.0,0.00038355,120]
[387819123,1758889838950,-480.0,0.00038356,30]
[387819124,1758889838960,-480.0,0.00038356,30]
[387819125,1758889838970,-480.0,0.00038356,30]
[387819126,1758889838979,-480.0,0.00038356,30]
[387819127,1758889838990,-480.0,0.00038356,30]
[387819128,1758889839000,-480.0,0.00038356,30]
[387819129,1758889839011,-292.41663212,0.00038356,30]
[387819130,1758889839022,-480.0,0.00038356,30]
[387819131,1758889839032,-480.0,0.00038356,30]
[387819132,1758889839042,-480.0,0.00038356,30]
[387819133,1758889839152,-480.0,0.00038356,30]
[387819134,1758889839166,-480.0,0.00038356,30]
[387819135,1758889839176,-960.0,0.00038356,120]
[387819136,1758889839185,-480.0,0.00038356,30]
[387819137,1758889839194,-579.15349361,0.00038356,30]
[387819138,1758889839203,-480.0,0.00038356,30]
[387819139,1758889839213,-480.0,0.00038356,30]
[387819140,1758889839223,-480.0,0.00038356,30]
[387819141,1758889839232,-480.0,0.00038356,30]
[387819142,1758889839242,-480.0,0.00038356,30]
[387819143,1758889839251,-480.0,0.00038356,30]
[387819144,1758889839261,-480.0,0.00038356,30]
[387819145,1758889839270,-493.12951659,0.00038356,30]
[387819146,1758889839280,-480.0,0.00038356,30]
[387819147,1758889839290,-480.0,0.00038356,30]
[387819148,1758889839299,-486.71215262,0.00038356,30]
[387819149,1758889839308,-480.0,0.00038356,30]
[387819150,1758889839317,-480.0,0.00038356,30]
[387819151,1758889839326,-480.0,0.00038356,30]
[387819152,1758889839335,-481.39195329,0.00038356,30]
[387819153,1758889839344,-480.0,0.00038356,30]
[387819154,1758889839353,-483.13137942,0.00038356,30]
[387819155,1758889839362,-480.0,0.00038356,30]
[387819156,1758889839371,-480.0,0.00038356,30]
[387819157,1758889839380,-448.52245511,0.00038356,30]
[387819158,1758889839390,-482.55097906,0.00038356,30]
[387819159,1758889839399,-502.89497107,0.00038356,30]
[387819160,1758889839408,-480.0,0.00038356,30]
[387819161,1758889839423,-480.000001,0.00038356,30]
[387819162,1758889839432,-480.0,0.00038356,30]
[387819163,1758889839441,-480.0,0.00038356,30]
[387819164,1758889839451,-481.30782703,0.00038356,30]
[387819165,1758889839461,-480.0,0.00038356,30]
[387819166,1758889839470,-483.77562167,0.00038356,30]
[387819167,1758889839479,-480.0,0.00038356,30]
[387819168,1758889839489,-480.0,0.00038356,30]
[387819169,1758889839498,-480.0,0.00038356,30]
[387819170,1758889839507,-489.5899288,0.00038356,30]
[387819171,1758889839516,-480.0,0.00038356,30]
[387819172,1758889839525,-480.0,0.00038356,30]
[387819173,1758889839535,-480.0,0.00038356,30]
[387819174,1758889839544,-480.0,0.00038356,30]
[387819175,1758889839554,-480.0,0.00038356,30]
[387819176,1758889839564,-469.72542937,0.00038356,30]
[387819177,1758889839574,-480.0,0.00038356,30]
[387819178,1758889839583,-480.0,0.00038356,30]
[387819179,1758889839592,-480.0,0.00038356,30]
[387819180,1758889839601,-480.0,0.00038356,30]
[387819181,1758889839610,-500.0,0.00038356,14]
[387819182,1758889839620,-480.0,0.00038356,30]
[387819183,1758889839629,-480.0,0.00038356,30]
[387819184,1758889839639,-522.85349546,0.00038356,30]
[387819185,1758889839648,-481.14193017,0.00038356,30]
[387819186,1758889839658,-170.5308643,0.00038356,30]
[387819187,1758889839673,-480.0,0.00038356,30]
[387819188,1758889839683,-480.0,0.00038356,30]
[387819190,1758889839693,-163.02662522,0.00038356,30]
[387819191,1758889839702,-581.41228505,0.00038356,30]
[387819192,1758889839711,-480.0,0.00038356,30]
[387819193,1758889839722,-480.0,0.00038356,30]
[387819194,1758889839732,-480.0,0.00038356,30]
[387819195,1758889839741,-480.0,0.00038356,30]
[387819196,1758889839751,-480.0,0.00038356,30]
[387819197,1758889839761,-480.0,0.00038356,30]
[387819198,1758889839770,-481.95969899,0.00038356,30]
[387819199,1758889839780,-480.0,0.00038356,30]
[387819200,1758889839790,-480.0,0.00038356,30]
[387819201,1758889839799,-502.99852514,0.00038356,30]
[387819202,1758889839808,-480.0,0.00038356,30]
[387819203,1758889839819,-480.0,0.00038356,30]
[387819204,1758889839828,-480.0,0.00038356,30]
[387819205,1758889839837,-480.0,0.00038356,30]
[387819206,1758889839846,-480.0,0.00038356,30]
[387819207,1758889839856,-480.0,0.00038356,30]
[387819208,1758889839865,-480.0,0.00038356,30]
[387819209,1758889839875,-186.38023505,0.00038356,2]
[387819210,1758889839885,-480.0,0.00038356,30]
[387819211,1758889839894,-480.0,0.00038356,30]
[387819212,1758889839904,-480.0,0.00038356,30]
[387819213,1758889839918,-480.0,0.00038356,30]
[387819214,1758889839927,-480.0,0.00038356,30]
[387819215,1758889839936,-508.74513094,0.00038356,30]
[387819216,1758889839946,-480.0,0.00038356,30]
[387819217,1758889839956,-480.0,0.00038356,30]
[387819218,1758889839965,-480.0,0.00038356,30]
[387819219,1758889839975,-480.0,0.00038356,30]
[387819220,1758889839984,-480.0,0.00038356,30]
[387819221,1758889839994,-480.0,0.00038356,30]
[387819222,1758889840004,-480.0,0.00038356,30]
[387819223,1758889840013,-480.0,0.00038356,30]
[387819224,1758889840022,-480.0,0.00038356,30]
[387819225,1758889840032,-480.0,0.00038356,30]
[387819226,1758889840041,-480.0,0.00038356,30]
[387819227,1758889840051,-480.0,0.00038356,30]
[387819228,1758889840060,-480.0,0.00038356,30]
[387819229,1758889840069,-483.34312254,0.00038356,30]
[387819230,1758889840078,-480.0,0.00038356,30]
[387819231,1758889840092,-480.0,0.00038356,30]
[387819232,1758889840101,-480.0,0.00038356,30]
[387819233,1758889840110,-480.0,0.00038356,30]
[387819234,1758889840122,-480.0,0.00038356,30]
[387819235,1758889840131,-480.0,0.00038356,30]
[387819236,1758889840142,-480.0,0.00038356,30]
[387819237,1758889840151,-502.62045336,0.00038356,30]
[387819238,1758889840161,-480.0,0.00038356,30]
[387819239,1758889840175,-480.0,0.00038356,30]
[387819240,1758889840186,-480.0,0.00038356,30]
[387819241,1758889840196,-480.0,0.00038356,30]
[387819242,1758889840206,-480.0,0.00038356,30]
[387819243,1758889840215,-480.0,0.00038356,30]
[387819244,1758889840225,-480.0,0.00038356,30]
[387819245,1758889840234,-480.96888571,0.00038356,30]
[387819246,1758889840244,-500.0,0.00038356,2]
[387819247,1758889840253,-480.0,0.00038356,30]
[387819248,1758889840263,-480.0,0.00038356,30]
[387819249,1758889840273,-500.0,0.00038356,30]
[387819250,1758889840283,-500.0,0.00038356,30]
[387819251,1758889840293,-500.0,0.00038356,30]
[387819252,1758889840303,-500.0,0.00038356,30]
[387819253,1758889840313,-500.0,0.00038356,30]
[387819254,1758889840322,-500.0,0.00038356,30]
[387819255,1758889840331,-500.0,0.00038356,30]
[387819256,1758889840340,-500.0,0.00038356,30]
[387819257,1758889840350,-480.0,0.00038356,30]
[387819258,1758889840359,-489.06985598,0.00038356,30]
[387819259,1758889840368,-481.10251567,0.00038356,30]
[387819260,1758889840377,-480.0,0.00038356,30]
[387819261,1758889840386,-480.0,0.00038356,30]
[387819262,1758889840396,-480.0,0.00038356,30]
[387819263,1758889840405,-480.0,0.00038356,30]
[387819264,1758889840418,-480.0,0.00038356,30]
[387819265,1758889840427,-480.0,0.00038356,30]
[387819266,1758889840436,-480.0,0.00038356,30]
[387819267,1758889840447,-480.0,0.00038356,30]
[387819268,1758889840456,-480.0,0.00038356,30]
[387819269,1758889840465,-488.86147265,0.00038356,30]
[387819270,1758889840474,-480.0,0.00038356,30]
[387819271,1758889840484,-480.0,0.00038356,30]
[387819272,1758889840493,-501.354154,0.00038356,30]
[387819273,1758889840503,-480.0,0.00038356,30]
[387819274,1758889840512,-480.0,0.00038356,30]
[387819275,1758889840521,-480.0,0.00038356,30]
[387819276,1758889840531,-480.0,0.00038356,30]
[387819277,1758889840540,-480.0,0.00038356,30]
[387819278,1758889840549,-480.0,0.00038356,30]
[387819279,1758889840559,-480.0,0.00038356,30]
[387819280,1758889840568,-426.84336838,0.00038356,30]
[387819281,1758889840577,-480.0,0.00038356,30]
[387819282,1758889840587,-480.0,0.00038356,30]
[387819283,1758889840596,-480.0,0.00038356,30]
[387819284,1758889840605,-480.0,0.00038356,30]
[387819285,1758889840615,-500.0,0.00038356,30]
[387819286,1758889840624,-480.0,0.00038356,30]
[387819287,1758889840634,-480.0,0.00038356,30]
[387819288,1758889840642,-480.0,0.00038356,30]
[387819289,1758889840652,-480.0,0.00038356,30]
[387819290,1758889840666,-480.0,0.00038356,30]
[387819291,1758889840677,-480.0,0.00038356,30]
[387819292,1758889840686,-480.0,0.00038356,30]
[387819293,1758889840696,-480.0,0.00038356,30]
[387819294,1758889840705,-500.0,0.00038356,30]
[387819295,1758889840714,-387.82884121,0.00038356,30]
[387819296,1758889840723,-484.46396251,0.00038356,14]
[387819297,1758889840732,-480.0,0.00038356,30]
[387819298,1758889840741,-480.0,0.00038356,30]
[387819299,1758889840751,-480.0,0.00038356,30]
[387819300,1758889840760,-480.0,0.00038356,30]
[387819301,1758889840769,-480.0,0.00038356,30]
[387819302,1758889840779,-480.0,0.00038356,30]
[387819303,1758889840789,-480.63772612,0.00038356,30]
[387819304,1758889840798,-480.0,0.00038356,30]
[387819305,1758889840807,-480.0,0.00038356,30]
[387819306,1758889840816,-480.0,0.00038356,30]
[387819307,1758889840825,-480.0,0.00038356,30]
[387819308,1758889840835,-480.0,0.00038356,30]
[387819309,1758889840844,-482.58824215,0.00038356,30]
[387819310,1758889840854,-480.0,0.00038356,30]
[387819311,1758889840864,-480.0,0.00038356,30]
[387819312,1758889840873,-480.0,0.00038356,30]
[387819313,1758889840883,-480.0,0.00038356,30]
[387819314,1758889840892,-480.0,0.00038356,30]
[387819315,1758889840901,-480.0,0.00038356,30]
[387819316,1758889840910,-480.0,0.00038356,30]
[387819317,1758889840926,-480.0,0.00038356,30]
[387819318,1758889840935,-477.65629713,0.00038356,30]
[387819319,1758889840944,-475.94486922,0.00038356,30]
[387819320,1758889840953,-480.0,0.00038356,30]
[387819321,1758889840962,-489.15388635,0.00038356,30]
[387819322,1758889840971,-480.0,0.00038356,30]
[387819323,1758889840980,-480.0,0.00038356,30]
[387819324,1758889840990,-480.0,0.00038356,30]
[387819325,1758889840999,-498.73459439,0.00038356,30]
[387819326,1758889841008,-480.0,0.00038356,30]
[387819327,1758889841017,-480.0,0.00038356,30]
[387819328,1758889841026,-480.0,0.00038356,30]
[387819329,1758889841035,-487.04948459,0.00038356,30]
[387819330,1758889841044,-480.0,0.00038356,30]
[387819331,1758889841054,-480.0,0.00038356,30]
[387819332,1758889841063,-480.0,0.00038356,30]
[387819333,1758889841072,-487.03356796,0.00038356,30]
[387819334,1758889841082,-480.0,0.00038356,30]
[387819335,1758889841093,-480.0,0.00038356,30]
[387819336,1758889841102,-480.0,0.00038356,30]
[387819337,1758889841113,-480.0,0.00038356,30]
[387819338,1758889841123,-480.0,0.00038356,30]
[387819339,1758889841133,-480.0,0.00038356,30]
[387819340,1758889841142,-480.0,0.00038356,30]
[387819341,1758889841152,-480.0,0.00038356,30]
[387819342,1758889841165,-480.0,0.00038356,30]
[387819343,1758889841175,-482.45145855,0.00038356,30]
[387819344,1758889841185,-480.0,0.00038356,30]
[387819345,1758889841194,-480.0,0.00038356,30]
[387819346,1758889841204,-480.0,0.00038356,30]
[387819347,1758889841213,-488.25510094,0.00038356,30]
[387819348,1758889841222,-480.0,0.00038356,30]
[387819349,1758889841232,-480.0,0.00038356,30]
[387819350,1758889841241,-480.0,0.00038356,30]
[387819351,1758889841250,-480.0,0.00038356,30]
[387819352,1758889841260,-480.0,0.00038356,30]
[387819353,1758889841268,-480.0,0.00038356,30]
[387819354,1758889841278,-480.0,0.00038356,30]
[387819355,1758889841288,-480.0,0.00038356,30]
[387819356,1758889841297,-480.0,0.00038356,30]
[387819357,1758889841307,-480.0,0.00038356,30]
[387819358,1758889841317,-480.0,0.00038356,30]
[387819359,1758889841326,-480.0,0.00038356,30]
[387819360,1758889841336,-480.0,0.00038356,30]
[387819361,1758889841345,-480.0,0.00038356,30]
[387819362,1758889841355,-480.0,0.00038356,30]
[387819363,1758889841364,-480.0,0.00038356,30]
[387819364,1758889841375,-480.0,0.00038356,30]
[387819365,1758889841385,-480.0,0.00038356,30]
[387819366,1758889841395,-480.0,0.00038356,30]
[387819367,1758889841405,-480.0,0.00038356,30]
[387819368,1758889841423,-480.0,0.00038356,30]
[387819369,1758889841432,-480.0,0.00038356,30]
[387819370,1758889841443,-480.0,0.00038356,30]
[387819371,1758889841455,-480.0,0.00038356,30]
[387819372,1758889841465,-480.0,0.00038356,30]
[387819373,1758889841475,-475.40726097,0.00038356,30]
[387819374,1758889841485,-480.0,0.00038356,30]
[387819375,1758889841496,-480.0,0.00038356,30]
[387819376,1758889841506,-480.0,0.00038356,30]
[387819377,1758889841516,-480.0,0.00038356,30]
[387819378,1758889841525,-480.0,0.00038356,30]
[387819379,1758889841535,-480.0,0.00038356,30]
[387819380,1758889841543,-483.5651413,0.00038356,30]
[387819381,1758889841553,-480.0,0.00038356,30]
[387819382,1758889841563,-480.0,0.00038356,30]